fUST/lending_fUST_20250809
["ID","MTS","AMOUNT","RATE_DAILY","PERIOD"]
[378157796,1754752245546,-527.77735381,0.00022569,2]
[378157797,1754752245556,-312.16666667,0.00022569,2]
[378157798,1754752245565,-231.92402426,0.00022569,2]
[378157799,1754752245575,-12666.14847857,0.00022569,2]
[378157800,1754752245585,-160.0,0.00022569,2]
[378157801,1754752245594,-215.40758176,0.00022569,2]
[378157802,1754752245604,-461.55179734,0.00022569,2]
[378157803,1754752245614,-160.0,0.00022569,2]
[378157804,1754752245623,-160.0,0.00022569,2]
[378157805,1754752245633,-216.61183532,0.00022569,2]
[378157806,1754752245642,-160.0,0.00022569,2]
[378157807,1754752245652,-160.0,0.000226,2]
[378157808,1754752245661,-460.0,0.00022609,2]
[378157809,1754752245671,-933.12,0.00022609,2]
[378157810,1754752245680,-460.0,0.00022609,2]
[378157811,1754752245690,-586.5,0.00022609,2]
[378157812,1754752245699,-558.54,0.00022609,2]
[378157813,1754752245709,-504.62,0.00022609,2]
[378157814,1754752245719,-1024.96,0.00022609,2]
[378157815,1754752245729,-460.0,0.00022609,2]
[378157816,1754752245739,-627.42,0.00022609,2]
[378157817,1754752245749,-1110.64,0.00022609,2]
[378157818,1754752245759,-759.38,0.00022635,2]
[378157819,1754752245769,-460.0,0.00022635,2]
[378157820,1754752245778,-1708.55,0.00022635,2]
[378157821,1754752245788,-460.0,0.00022635,2]
[378157822,1754752245798,-476.07,0.00022635,2]
[378157823,1754752245807,-460.0,0.00022635,2]
[378157824,1754752245817,-966.51,0.00022635,2]
[378157825,1754752245828,-723.96,0.00022635,2]
[378157826,1754752245839,-460.0,0.00022636,2]
[378157827,1754752245849,-460.0,0.00022636,2]
[378157828,1754752245859,-460.0,0.00022636,2]
[378157829,1754752245869,-585.07,0.00022636,2]
[378157830,1754752245879,-460.0,0.00022636,2]
[378157831,1754752245888,-460.0,0.00022636,2]
[378157832,1754752245898,-604.09,0.00022636,2]
[378157833,1754752245907,-460.0,0.00022636,2]
[378157834,1754752245917,-636.19,0.00022636,2]
[378157835,1754752245927,-460.0,0.00022636,2]
[378157836,1754752245936,-523.71,0.00022636,2]
[378157837,1754752245946,-460.0,0.00022636,2]
[378157838,1754752245956,-460.0,0.00022636,2]
[378157839,1754752245966,-460.0,0.00022636,2]
[378157840,1754752245975,-460.0,0.00022636,2]
[378157841,1754752245985,-458.91,0.00022636,2]
[378157842,1754752245995,-476.83307238,0.00022636,2]
[378157843,1754752246005,-460.0,0.00022636,2]
[378157844,1754752246014,-460.0,0.00022636,2]
[378157845,1754752246024,-3875.91,0.00022636,2]
[378157846,1754752246035,-460.0,0.00022636,2]
[378157848,1754752246046,-460.0,0.00022636,2]
[378157849,1754752246056,-460.0,0.00022636,2]
[378157850,1754752246065,-460.0,0.00022636,2]
[378157851,1754752246075,-460.0,0.00022636,2]
[378157852,1754752246084,-460.0,0.00022636,2]
[378157853,1754752246094,-707.92,0.00022636,2]
[378157854,1754752246103,-670.59,0.00022636,2]
[378157855,1754752246114,-460.0,0.00022636,2]
[378157856,1754752246126,-507.77,0.00022636,2]
[378157857,1754752246135,-460.0,0.00022636,2]
[378157858,1754752246145,-460.0,0.00022636,2]
[378157859,1754752246154,-460.0,0.00022636,2]
[378157860,1754752246164,-460.0,0.00022636,2]
[378157862,1754752246174,-460.0,0.00022636,2]
[378157864,1754752246183,-460.0,0.00022636,2]
[378157865,1754752246193,-460.0,0.00022636,2]
[378157866,1754752246203,-1094.79,0.00022636,2]
[378157867,1754752246212,-590.28,0.00022636,2]
[378157868,1754752246222,-460.0,0.00022636,2]
[378157869,1754752246231,-498.33,0.00022636,2]
[378157870,1754752246241,-1278.6,0.00022637,2]
[378157871,1754752246250,-460.0,0.00022637,2]
[378157872,1754752246260,-1182.16,0.00022637,2]
[378157873,1754752246270,-460.0,0.00022637,2]
[378157874,1754752246279,-653.18,0.00022637,2]
[378157875,1754752246289,-151.55838076,0.00022638,2]
[378157876,1754752246298,-500.0,0.00022638,2]
[378157877,1754752246308,-390.26213647,0.00022669,2]
[378157878,1754752246317,-150.0,0.00022739,2]
[378157879,1754752246327,-460.0,0.00022739,2]
[378157880,1754752246336,-460.0,0.00022739,2]
[378157881,1754752246346,-460.0,0.00022739,2]
[378157882,1754752246356,-460.0,0.00022739,2]
[378157883,1754752246365,-460.0,0.00022739,2]
[378157884,1754752246375,-460.0,0.00022739,2]
[378157885,1754752246384,-460.0,0.00022739,2]
[378157886,1754752246394,-460.0,0.00022739,2]
[378157887,1754752246404,-460.0,0.00022739,2]
[378157888,1754752246413,-460.0,0.00022739,2]
[378157889,1754752246423,-460.0,0.00022739,2]
[378157890,1754752246433,-391.16315626,0.00022739,2]
[378157891,1754752246443,-460.0,0.00022739,2]
[378157892,1754752246453,-460.0,0.00022739,2]
[378157893,1754752246463,-460.0,0.00022739,2]
[378157894,1754752246472,-460.0,0.00022739,2]
[378157895,1754752246482,-460.0,0.00022739,2]
[378157896,1754752246492,-460.0,0.00022739,2]
[378157897,1754752246502,-460.0,0.00022739,2]
[378157898,1754752246511,-460.0,0.00022739,2]
[378157899,1754752246521,-552.27,0.00022739,2]
[378157900,1754752246531,-496.69664594,0.00022739,2]
[378157901,1754752246541,-460.0,0.00022739,2]
[378157902,1754752246551,-460.0,0.00022739,2]
[378157903,1754752246561,-460.0,0.0002275,2]
[378157904,1754752246571,-460.0,0.0002275,2]
[378157905,1754752246581,-927.6,0.0002275,2]
[378157906,1754752246591,-460.0,0.0002275,2]
[378157907,1754752246602,-460.0,0.00022811,2]
[378157908,1754752246613,-1393.84,0.00022811,2]
[378157909,1754752246623,-1968.56,0.00022811,2]
[378157910,1754752246633,-500.0,0.00022865,2]
[378157911,1754752246643,-460.0,0.00022883,2]
[378157912,1754752246653,-933.12,0.00022883,2]
[378157913,1754752246663,-586.5,0.00022883,2]
[378157914,1754752246673,-558.54,0.00022883,2]
[378157915,1754752246683,-504.62,0.00022883,2]
[378157916,1754752246693,-1024.96,0.00022883,2]
[378157917,1754752246703,-627.42,0.00022883,2]
[378157918,1754752246712,-1110.64,0.00022883,2]
[378157919,1754752246723,-611.52703329,0.00022888,2]
[378157920,1754752246733,-500.0,0.00022888,2]
[378157921,1754752246743,-600.0,0.00022888,2]
[378157922,1754752246753,-500.0,0.00022888,2]
[378157923,1754752246763,-759.38,0.00022909,2]
[378157924,1754752246773,-460.0,0.00022909,2]
[378157925,1754752246783,-1708.55,0.00022909,2]
[378157926,1754752246795,-460.0,0.00022909,2]
[378157927,1754752246809,-476.07,0.00022909,2]
[378157928,1754752246819,-460.0,0.00022909,2]
[378157929,1754752246829,-966.51,0.00022909,2]
[378157930,1754752246839,-723.96,0.00022909,2]
[378157931,1754752246849,-460.0,0.0002291,2]
[378157932,1754752246859,-460.0,0.0002291,2]
[378157933,1754752246868,-585.07,0.0002291,2]
[378157934,1754752246878,-460.0,0.0002291,2]
[378157935,1754752246887,-604.09,0.0002291,2]
[378157936,1754752246897,-636.19,0.0002291,2]
[378157937,1754752246907,-523.71,0.0002291,2]
[378157938,1754752246916,-460.0,0.0002291,2]
[378157939,1754752246926,-460.0,0.0002291,2]
[378157940,1754752246936,-460.0,0.0002291,2]
[378157941,1754752246946,-460.0,0.0002291,2]
[378157942,1754752246955,-460.0,0.0002291,2]
[378157943,1754752246965,-460.0,0.0002291,2]
[378157944,1754752246974,-3875.91,0.0002291,2]
[378157945,1754752246984,-460.0,0.0002291,2]
[378157946,1754752246993,-460.0,0.0002291,2]
[378157947,1754752247003,-460.0,0.0002291,2]
[378157948,1754752247013,-460.0,0.0002291,2]
[378157949,1754752247023,-460.0,0.0002291,2]
[378157950,1754752247032,-707.92,0.0002291,2]
[378157951,1754752247042,-670.59,0.0002291,2]
[378157952,1754752247052,-460.0,0.0002291,2]
[378157953,1754752247061,-507.77,0.0002291,2]
[378157954,1754752247071,-580.16894444,0.0002291,2]
[378157955,1754752247080,-460.0,0.0002291,2]
[378157956,1754752247091,-460.0,0.0002291,2]
[378157957,1754752247100,-460.0,0.0002291,2]
[378157958,1754752247111,-460.0,0.0002291,2]
[378157959,1754752247125,-460.0,0.0002291,2]
[378157960,1754752247135,-1094.79,0.0002291,2]
[378157961,1754752247144,-590.28,0.0002291,2]
[378157962,1754752247155,-460.0,0.0002291,2]
[378157963,1754752247165,-1278.6,0.00022911,2]
[378157964,1754752247175,-460.0,0.00022911,2]
[378157965,1754752247185,-1182.16,0.00022911,2]
[378157966,1754752247195,-460.0,0.00022911,2]
[378157967,1754752247205,-653.18,0.00022911,2]
[378157968,1754752247215,-500.0,0.00022912,2]
[378157969,1754752247225,-500.59736898,0.00022955,2]
[378157970,1754752247235,-500.0,0.00022984,2]
[378157971,1754752247245,-500.0,0.00022984,2]
[378157972,1754752247256,-500.0,0.00022988,2]
[378157973,1754752247265,-500.0,0.00022988,2]
[378157974,1754752247275,-569.97181184,0.00022988,2]
[378157975,1754752247285,-437.32267485,0.00022988,2]
[378157976,1754752247295,-164.09,0.00023,6]
[378157977,1754752247306,-160.0,0.00023,2]
[378157978,1754752247316,-460.0,0.00023013,2]
[378157979,1754752247326,-460.0,0.00023013,2]
[378157980,1754752247336,-460.0,0.00023013,2]
[378157981,1754752247347,-460.0,0.00023013,2]
[378157982,1754752247357,-460.0,0.00023013,2]
[378157983,1754752247367,-460.0,0.00023013,2]
[378157984,1754752247377,-460.0,0.00023013,2]
[378157985,1754752247387,-460.0,0.00023013,2]
[378157986,1754752247396,-460.0,0.00023013,2]
[378157987,1754752247406,-460.0,0.00023013,2]
[378157988,1754752247416,-460.0,0.00023013,2]
[378157989,1754752247426,-460.0,0.00023013,2]
[378157990,1754752247436,-460.0,0.00023013,2]
[378157991,1754752247446,-460.0,0.00023013,2]
[378157992,1754752247456,-460.0,0.00023013,2]
[378157993,1754752247468,-460.0,0.00023013,2]
[378157994,1754752247478,-552.27,0.00023013,2]
[378157995,1754752247488,-460.0,0.00023013,2]
[378157996,1754752247499,-460.0,0.00023013,2]
[378157997,1754752247509,-168.0,0.00023014,7]
[378157998,1754752247519,-487.13639143,0.00023024,2]
[378157999,1754752247647,-460.0,0.00023024,2]
[378158000,1754752247657,-927.6,0.00023024,2]
[378158001,1754752247666,-460.0,0.00023024,2]
[378158002,1754752247676,-1500.0,0.00023068,2]
[378158003,1754752247686,-231.59178084,0.00023085,2]
[378158004,1754752247695,-1393.84,0.00023085,2]
[378158005,1754752247705,-1968.56,0.00023085,2]
[378158006,1754752247717,-151.0,0.000231,5]
[378158007,1754752247726,-500.0,0.00023113,2]
[378158008,1754752247736,-500.0,0.00023113,2]
[378158009,1754752247745,-500.0,0.00023113,2]
[378158010,1754752247754,-500.0,0.00023113,2]
[378158011,1754752247764,-500.0,0.00023113,2]
[378158012,1754752247773,-511.05840491,0.00023113,2]
[378158013,1754752247783,-504.58546499,0.00023113,2]
[378158014,1754752247792,-260.0,0.00023148,2]
[378158015,1754752247802,-460.0,0.00023157,2]
[378158016,1754752247811,-933.12,0.00023157,2]
[378158017,1754752247821,-586.5,0.00023157,2]
[378158018,1754752247831,-558.54,0.00023157,2]
[378158019,1754752247841,-504.62,0.00023157,2]
[378158020,1754752247850,-1024.96,0.00023157,2]
[378158021,1754752247860,-627.42,0.00023157,2]
[378158022,1754752247870,-1110.64,0.00023157,2]
[378158023,1754752247879,-759.38,0.00023183,2]
[378158024,1754752247888,-460.0,0.00023183,2]
[378158025,1754752247898,-1708.55,0.00023183,2]
[378158026,1754752247907,-460.0,0.00023183,2]
[378158027,1754752247916,-476.07,0.00023183,2]
[378158028,1754752247926,-460.0,0.00023183,2]
[378158029,1754752247935,-966.51,0.00023183,2]
[378158030,1754752247944,-723.96,0.00023183,2]
[378158031,1754752247954,-460.0,0.00023184,2]
[378158032,1754752247964,-585.07,0.00023184,2]
[378158033,1754752247973,-460.0,0.00023184,2]
[378158034,1754752247983,-604.09,0.00023184,2]
[378158035,1754752247992,-636.19,0.00023184,2]
[378158036,1754752248002,-523.71,0.00023184,2]
[378158037,1754752248011,-460.0,0.00023184,2]
[378158038,1754752248021,-460.0,0.00023184,2]
[378158039,1754752248030,-460.0,0.00023184,2]
[378158040,1754752248039,-460.0,0.00023184,2]
[378158041,1754752248048,-460.0,0.00023184,2]
[378158042,1754752248058,-460.0,0.00023184,2]
[378158043,1754752248069,-3875.91,0.00023184,2]
[378158044,1754752248078,-460.0,0.00023184,2]
[378158045,1754752248088,-460.0,0.00023184,2]
[378158046,1754752248098,-460.0,0.00023184,2]
[378158047,1754752248108,-460.0,0.00023184,2]
[378158048,1754752248121,-707.92,0.00023184,2]
[378158049,1754752248131,-670.59,0.00023184,2]
[378158050,1754752248141,-460.0,0.00023184,2]
[378158051,1754752248150,-507.77,0.00023184,2]
[378158052,1754752248160,-460.0,0.00023184,2]
[378158053,1754752248169,-509.95,0.00023184,2]
[378158054,1754752248179,-460.0,0.00023184,2]
[378158055,1754752248188,-356.34761962,0.00023184,2]
[378158056,1754752248198,-460.0,0.00023184,2]
[378158057,1754752248208,-1094.79,0.00023184,2]
[378158058,1754752248219,-590.28,0.00023184,2]
[378158059,1754752248228,-460.0,0.00023184,2]
[378158060,1754752248238,-1278.6,0.00023185,2]
[378158061,1754752248248,-460.0,0.00023185,2]
[378158062,1754752248258,-1182.16,0.00023185,2]
[378158063,1754752248267,-653.18,0.00023185,2]
[378158064,1754752248277,-500.0,0.00023186,2]
[378158065,1754752248287,-555.79,0.00023199,2]
[378158066,1754752248297,-293.2387763,0.00023214,2]
[378158067,1754752248306,-166.6738502,0.00023214,2]
[378158068,1754752248316,-160.8257755,0.00023214,2]
[378158069,1754752248325,-579.5619394,0.00023214,2]
[378158070,1754752248335,-159.5278873,0.00023214,2]
[378158071,1754752248344,-293.2387763,0.00023214,2]
[378158072,1754752248354,-160.4860294,0.00023214,2]
[378158073,1754752248364,-579.5619394,0.00023214,2]
[378158074,1754752248373,-153.0000001,0.00023214,2]
[378158075,1754752248383,-160.4860294,0.00023214,2]
[378158076,1754752248392,-153.0,0.00023214,2]
[378158077,1754752248402,-579.5619394,0.00023214,2]
[378158078,1754752248411,-484.9050254,0.00023214,2]
[378158079,1754752248421,-160.4860294,0.00023214,2]
[378158080,1754752248430,-424.6347249,0.00023214,2]
[378158081,1754752248440,-153.0,0.00023214,2]
[378158082,1754752248450,-153.0,0.00023214,2]
[378158083,1754752248460,-329.69635784,0.00023259,2]
[378158084,1754752248471,-250.0,0.00023287,2]
[378158085,1754752248481,-460.0,0.00023287,2]
[378158086,1754752248490,-460.0,0.00023287,2]
[378158087,1754752248500,-460.0,0.00023287,2]
[378158088,1754752248510,-460.0,0.00023287,2]
[378158089,1754752248519,-460.0,0.00023287,2]
[378158090,1754752248529,-460.0,0.00023287,2]
[378158091,1754752248539,-460.0,0.00023287,2]
[378158092,1754752248549,-460.0,0.00023287,2]
[378158093,1754752248558,-460.0,0.00023287,2]
[378158094,1754752248568,-460.0,0.00023287,2]
[378158095,1754752248577,-460.0,0.00023287,2]
[378158096,1754752248586,-460.0,0.00023287,2]
[378158097,1754752248596,-460.0,0.00023287,2]
[378158098,1754752248605,-460.0,0.00023287,2]
[378158099,1754752248615,-552.27,0.00023287,2]
[378158100,1754752248626,-460.0,0.00023287,2]
[378158101,1754752248635,-151.0,0.00023287,7]
[378158102,1754752248644,-151.0,0.00023287,7]
[378158103,1754752248654,-151.0,0.00023287,7]
[378158104,1754752248663,-155.340455,0.00023287,7]
[378158105,1754752248673,-151.0,0.00023287,7]
[378158106,1754752248682,-151.0,0.00023287,7]
[378158107,1754752248692,-151.0,0.00023287,7]
[378158108,1754752248701,-151.0,0.00023287,7]
[378158109,1754752248711,-500.0,0.00023288,2]
[378158110,1754752248723,-460.0,0.00023298,2]
[378158111,1754752248733,-927.6,0.00023298,2]
[378158112,1754752248743,-460.0,0.00023298,2]
[378158113,1754752248753,-151.15347236,0.00023301,2]
[378158114,1754752248762,-151.0,0.00023301,2]
[378158115,1754752248771,-151.0,0.00023301,2]
[378158116,1754752248780,-151.0,0.00023301,2]
[378158117,1754752248789,-151.0,0.00023301,2]
[378158118,1754752248799,-151.0,0.00023301,2]
[378158119,1754752248809,-500.0,0.00023301,2]
[378158120,1754752248818,-151.0,0.00023301,2]
[378158121,1754752248828,-151.0,0.00023301,2]
[378158122,1754752248838,-500.0,0.00023301,2]
[378158123,1754752248848,-151.0,0.00023301,2]
[378158124,1754752248857,-151.0,0.00023301,2]
[378158125,1754752248866,-151.0,0.00023301,2]
[378158126,1754752248876,-151.0,0.00023301,2]
[378158127,1754752248885,-500.0,0.00023301,2]
[378158128,1754752248895,-151.0,0.00023301,2]
[378158129,1754752248905,-151.0,0.00023301,2]
[378158130,1754752248914,-500.0,0.00023301,2]
[378158131,1754752248924,-151.0,0.00023301,2]
[378158132,1754752248933,-283.13844623,0.00023301,2]
[378158133,1754752248943,-151.0,0.00023301,2]
[378158134,1754752248953,-500.0,0.00023301,2]
[378158135,1754752248962,-151.0,0.00023301,2]
[378158136,1754752248973,-500.0,0.00023301,2]
[378158137,1754752248983,-151.0,0.00023301,2]
[378158138,1754752248992,-500.0,0.00023301,2]
[378158139,1754752249001,-151.0,0.00023301,2]
[378158140,1754752249011,-500.0,0.00023301,2]
[378158141,1754752249020,-151.0,0.00023301,2]
[378158142,1754752249031,-8591.8268037,0.00023301,2]
[378158143,1754752249042,-500.0,0.00023301,2]
[378158144,1754752249051,-500.0,0.00023301,2]
[378158145,1754752249061,-151.0,0.00023301,2]
[378158146,1754752249071,-151.0,0.00023301,2]
[378158147,1754752249081,-500.0,0.00023301,2]
[378158148,1754752249090,-500.0,0.00023301,2]
[378158149,1754752249100,-500.0,0.00023301,2]
[378158150,1754752249110,-151.0,0.00023301,2]
[378158151,1754752249123,-151.0,0.00023301,2]
[378158152,1754752249132,-151.0,0.00023301,2]
[378158153,1754752249141,-151.0,0.00023301,2]
[378158154,1754752249151,-151.0,0.00023301,2]
[378158155,1754752249162,-1393.84,0.00023359,2]
[378158156,1754752249172,-1968.56,0.00023359,2]
[378158157,1754752249182,-304.0,0.00023388,2]
[378158158,1754752249193,-420.0,0.00023388,2]
[378158159,1754752249202,-153.215366,0.00023409,7]
[378158160,1754752249212,-151.0,0.00023409,7]
[378158161,1754752249223,-6315.67821596,0.00023409,2]
[378158162,1754752249233,-1000.0,0.00023413,2]
[378158163,1754752249243,-460.0,0.00023431,2]
[378158164,1754752249253,-933.12,0.00023431,2]
[378158165,1754752249262,-586.5,0.00023431,2]
[378158166,1754752249272,-558.54,0.00023431,2]
[378158167,1754752249281,-504.62,0.00023431,2]
[378158168,1754752249291,-1024.96,0.00023431,2]
[378158169,1754752249300,-627.42,0.00023431,2]
[378158170,1754752249309,-1110.64,0.00023431,2]
[378158171,1754752249319,-1000.0,0.00023435,2]
[378158172,1754752249328,-1200.0,0.00023435,2]
[378158173,1754752249338,-759.38,0.00023457,2]
[378158174,1754752249347,-460.0,0.00023457,2]
[378158175,1754752249357,-1708.55,0.00023457,2]
[378158176,1754752249366,-476.07,0.00023457,2]
[378158177,1754752249376,-460.0,0.00023457,2]
[378158178,1754752249385,-966.51,0.00023457,2]
[378158179,1754752249395,-723.96,0.00023457,2]
[378158180,1754752249404,-585.07,0.00023458,2]
[378158181,1754752249414,-460.0,0.00023458,2]
[378158182,1754752249423,-604.09,0.00023458,2]
[378158183,1754752249432,-636.19,0.00023458,2]
[378158184,1754752249441,-523.71,0.00023458,2]
[378158185,1754752249450,-460.0,0.00023458,2]
[378158186,1754752249460,-460.0,0.00023458,2]
[378158187,1754752249470,-460.0,0.00023458,2]
[378158188,1754752249480,-460.0,0.00023458,2]
[378158189,1754752249490,-186.7298308,0.00023458,2]
[378158190,1754752249499,-460.0,0.00023458,2]
[378158191,1754752249509,-3875.91,0.00023458,2]
[378158192,1754752249518,-460.0,0.00023458,2]
[378158193,1754752249528,-460.0,0.00023458,2]
[378158194,1754752249537,-460.0,0.00023458,2]
[378158195,1754752249547,-460.0,0.00023458,2]
[378158196,1754752249556,-707.92,0.00023458,2]
[378158197,1754752249566,-670.59,0.00023458,2]
[378158198,1754752249575,-460.0,0.00023458,2]
[378158199,1754752249585,-507.77,0.00023458,2]
[378158200,1754752249595,-410.77880587,0.00023458,2]
[378158201,1754752249604,-460.0,0.00023458,2]
[378158202,1754752249614,-460.0,0.00023458,2]
[378158203,1754752249623,-1094.79,0.00023458,2]
[378158204,1754752249633,-590.28,0.00023458,2]
[378158205,1754752249643,-460.0,0.00023458,2]
[378158206,1754752249652,-1278.6,0.00023459,2]
[378158207,1754752249662,-460.0,0.00023459,2]
[378158208,1754752249671,-1182.16,0.00023459,2]
[378158209,1754752249680,-653.18,0.00023459,2]
[378158210,1754752249689,-1680.0,0.00023497,2]
[378158211,1754752249698,-556.0,0.00023514,2]
[378158212,1754752249707,-200.0,0.00023525,29]
[378158213,1754752249716,-1000.0,0.00023532,2]
[378158214,1754752249725,-507.99762055,0.00023532,2]
[378158215,1754752249735,-151.0,0.00023539,7]
[378158216,1754752249744,-151.0,0.00023539,7]
[378158217,1754752249755,-151.0,0.00023539,7]
[378158218,1754752249764,-151.0,0.00023539,7]
[378158219,1754752249773,-151.0,0.00023539,7]
[378158220,1754752249784,-151.0,0.00023539,7]
[378158221,1754752249794,-288.856446,0.00023539,7]
[378158222,1754752249803,-288.856446,0.00023539,7]
[378158223,1754752249812,-4374.0,0.00023539,2]
[378158224,1754752249822,-460.0,0.00023561,2]
[378158225,1754752249831,-460.0,0.00023561,2]
[378158226,1754752249842,-460.0,0.00023561,2]
[378158227,1754752249851,-460.0,0.00023561,2]
[378158228,1754752249861,-460.0,0.00023561,2]
[378158229,1754752249871,-460.0,0.00023561,2]
[378158230,1754752249880,-460.0,0.00023561,2]
[378158231,1754752249889,-569.08353206,0.00023561,2]
[378158232,1754752249899,-460.0,0.00023561,2]
[378158233,1754752249909,-460.0,0.00023561,2]
[378158234,1754752249919,-457.995757,0.00023561,7]
[378158235,1754752249928,-457.995757,0.00023561,7]
[378158236,1754752249938,-552.27,0.00023561,2]
[378158237,1754752249947,-151.0,0.00023561,7]
[378158238,1754752249957,-151.0,0.00023561,7]
[378158239,1754752249966,-151.0,0.00023561,7]
[378158240,1754752249975,-151.0,0.00023561,7]
[378158241,1754752249984,-460.0,0.00023572,2]
[378158242,1754752249994,-927.6,0.00023572,2]
[378158243,1754752250003,-460.0,0.00023572,2]
[378158244,1754752250012,-2028.95677806,0.00023616,2]
[378158245,1754752250021,-1513.69,0.00023633,2]
[378158246,1754752250030,-1393.84,0.00023633,2]
[378158247,1754752250039,-1968.56,0.00023633,2]
[378158248,1754752250048,-5888.0,0.00023655,2]
[378158249,1754752250058,-1000.0,0.00023661,2]
[378158250,1754752250067,-1000.0,0.00023661,2]
[378158251,1754752250076,-1000.0,0.00023661,2]
[378158252,1754752250085,-1000.0,0.00023661,2]
[378158253,1754752250095,-1000.0,0.00023661,2]
[378158254,1754752250104,-360.0,0.00023696,2]
[378158255,1754752250114,-460.0,0.00023705,2]
[378158256,1754752250125,-933.12,0.00023705,2]
[378158257,1754752250134,-586.5,0.00023705,2]
[378158258,1754752250144,-558.54,0.00023705,2]
[378158259,1754752250153,-504.62,0.00023705,2]
[378158260,1754752250163,-1024.96,0.00023705,2]
[378158261,1754752250172,-627.42,0.00023705,2]
[378158262,1754752250181,-1110.64,0.00023705,2]
[378158263,1754752250191,-759.38,0.00023731,2]
[378158264,1754752250201,-460.0,0.00023731,2]
[378158265,1754752250210,-1708.55,0.00023731,2]
[378158266,1754752250220,-476.07,0.00023731,2]
[378158267,1754752250230,-460.0,0.00023731,2]
[378158268,1754752250239,-966.51,0.00023731,2]
[378158269,1754752250248,-723.96,0.00023731,2]
[378158270,1754752250258,-585.07,0.00023732,2]
[378158271,1754752250267,-460.0,0.00023732,2]
[378158272,1754752250276,-604.09,0.00023732,2]
[378158273,1754752250285,-636.19,0.00023732,2]
[378158274,1754752250294,-523.71,0.00023732,2]
[378158275,1754752250303,-460.0,0.00023732,2]
[378158276,1754752250312,-460.0,0.00023732,2]
[378158277,1754752250321,-3875.91,0.00023732,2]
[378158278,1754752250331,-213.56704222,0.00023732,2]
[378158279,1754752250341,-460.0,0.00023732,2]
[378158280,1754752250350,-460.0,0.00023732,2]
[378158281,1754752250359,-460.0,0.00023732,2]
[378158282,1754752250368,-707.92,0.00023732,2]
[378158283,1754752250377,-670.59,0.00023732,2]
[378158284,1754752250386,-415.48042788,0.00023732,2]
[378158285,1754752250395,-507.77,0.00023732,2]
[378158286,1754752250405,-460.0,0.00023732,2]
[378158287,1754752250414,-460.0,0.00023732,2]
[378158288,1754752250423,-1094.79,0.00023732,2]
[378158289,1754752250432,-590.28,0.00023732,2]
[378158290,1754752250441,-460.0,0.00023732,2]
[378158291,1754752250450,-1278.6,0.00023733,2]
[378158292,1754752250459,-460.0,0.00023733,2]
[378158293,1754752250469,-1182.16,0.00023733,2]
[378158294,1754752250478,-653.18,0.00023733,2]
[378158295,1754752250488,-500.0,0.00023835,2]
[378158296,1754752250497,-460.0,0.00023835,2]
[378158297,1754752250506,-460.0,0.00023835,2]
[378158298,1754752250515,-151.0,0.00023835,7]